bitfinex/quotes_ETHUSD_20250415
["timestamp","ask_amount","ask_price","bid_price","bid_amount"]
[1744760569967,12.58489321,1589.3,1589.1,0.02]
[1744760570242,6.2924742,1589.2,1589.1,0.02]
[1744760570603,7.0506742,1589.2,1589.1,0.02]
[1744760570809,13.15067419,1589.2,1589.1,0.02]
[1744760571004,6.85819999,1589.2,1589.1,0.02]
[1744760571442,6.09999999,1589.2,1589.1,0.02]
[1744760571948,6.09999999,1589.2,1589.1,6.31287017]
[1744760572308,6.09999999,1589.2,1589.1,0.02]
[1744760572508,6.09999999,1589.2,1589.1,6.31287017]
[1744760573710,6.09999999,1589.2,1589.1,7.08597017]
[1744760574849,6.21805562,1589.2,1589.1,7.08597017]
[1744760576445,0.11805563,1589.2,1589.1,7.08597017]
[1744760576649,6.09999999,1589.4,1589.3,6.29207827]
[1744760576948,6.21858557,1589.4,1589.2,12.58479542]
[1744760577248,6.21858557,1589.4,1589.2,12.58474184]
[1744760577462,6.21858557,1589.4,1589.2,6.29235926]
[1744760577663,6.21858557,1589.4,1589.2,6.29235344]
[1744760579063,6.21858557,1589.4,1589.2,12.58471964]
[1744760579569,6.21858557,1589.4,1589.2,6.29235344]
[1744760580364,6.21858557,1589.4,1589.3,6.29207827]
[1744760582262,0.11858558,1589.4,1589.3,6.29207827]
[1744760582561,0.11858558,1589.4,1589.3,7.82721025]
[1744760583141,0.11858558,1589.4,1589.3,7.08467827]
[1744760585327,11.95799999,1589.6,1589.4,12.58309634]
[1744760585773,11.95799999,1589.6,1589.4,6.29154318]
[1744760585935,19.00821458,1589.6,1589.3,13.37655196]
[1744760586564,19.00821458,1589.6,1589.3,7.08455561]
[1744760586770,19.00821458,1589.6,1589.3,13.37651906]
[1744760587273,12.71729999,1589.6,1589.4,6.29158187]
[1744760588065,11.95799999,1589.6,1589.4,6.29158187]
[1744760588271,18.24904579,1589.6,1589.3,13.37648393]
[1744760588458,11.95799999,1589.6,1589.4,6.29167267]
[1744760588771,18.24893361,1589.6,1589.3,13.37642644]
[1744760588947,18.24893361,1589.6,1589.3,7.08446024]
[1744760589267,11.95799999,1589.6,1589.3,7.08446024]
[1744760589440,11.95799999,1589.6,1589.4,6.2915684]
[1744760589641,18.24900356,1589.6,1589.3,7.08446024]
[1744760589961,24.54004952,1589.6,1589.3,7.08446024]
[1744760590672,11.95799999,1589.6,1589.4,6.29158161]
[1744760591052,11.95799999,1589.6,1589.3,7.08446024]
[1744760591053,18.24893903,1589.6,1589.3,7.08446024]
[1744760591972,6.291692,1589.4,1589.2,6.29247112]
[1744760592178,7.07939927,1589.5,1589.3,6.29207035]
[1744760592568,7.07939927,1589.5,1589.2,6.29247112]
[1744760592967,6.29168264,1589.4,1589.2,6.29247112]
[1744760593366,6.29168264,1589.4,1589.1,7.143613]
[1744760593891,6.29168264,1589.4,1589.1,13.436326]
[1744760594392,5.753,1589.3,1589.1,13.436326]
[1744760594890,5.753,1589.3,1589.1,0.02]
[1744760595100,13.19167419,1589.2,1589.1,0.02]
[1744760595999,6.09999999,1589.2,1589.1,0.02]
[1744760596293,6.09999999,1589.2,1589.1,7.13027017]
[1744760596872,8.08818116,1589.2,1588.1,0.05]
[1744760597180,9.29960942,1587.4,1587.3,10.10159029]
[1744760597391,3.65609731,1587.4,1587.3,10.10159029]
[1744760597593,6.29960942,1587.4,1587.3,10.10159029]
[1744760597783,0.58393462,1587.4,1587.3,10.10159029]
[1744760598105,0.58393462,1587.4,1587.3,19.86018529]
[1744760598306,7.06417905,1587.9,1587.3,19.86018529]
[1744760598481,6.29804694,1587.8,1587.3,0.74139008]
[1744760598684,7.06406696,1587.9,1587.4,6.29958149]
[1744760598983,6.29803086,1587.8,1587.4,6.29958149]
[1744760599183,6.29803086,1587.8,1587.3,7.04113142]
[1744760599380,6.29874314,1587.7,1587.2,10.91569029]
[1744760599785,6.29874314,1587.7,1587.2,17.21584529]
[1744760600270,6.29804502,1587.8,1587.2,17.21584529]
[1744760600271,6.29802242,1587.8,1587.2,10.91569029]
[1744760600474,6.29896021,1587.6,1587.2,10.91569029]
[1744760600675,6.29896021,1587.6,1587.2,17.21607194]
[1744760600871,6.29872981,1587.7,1587.2,20.53955285]
[1744760601205,6.28683739,1587.6,1587.2,20.53955285]
[1744760601406,6.29870173,1587.7,1587.3,6.2998419]
[1744760601588,12.5974573,1587.7,1587.2,20.53955285]
[1744760601911,6.29870173,1587.7,1587.2,20.53955285]
[1744760602112,6.29885364,1587.6,1587.2,20.53955285]
[1744760602409,6.2978415,1587.9,1587.4,6.29930618]
[1744760602579,12.59572845,1587.9,1587.5,6.29915658]
[1744760602777,6.2964819,1588.2,1587.7,0.8329]
[1744760602974,6.29643621,1588.2,1587.7,7.19425069]
[1744760603199,4.20301185,1588.3,1587.9,6.29756435]
[1744760603200,10.49925626,1588.3,1587.9,6.29756435]
[1744760603509,6.29674417,1588.2,1587.8,6.2979787]
[1744760603807,6.29674417,1588.2,1587.8,13.30893003]
[1744760604009,6.29674417,1588.2,1587.7,13.42949241]
[1744760604010,6.29668975,1588.2,1587.7,13.42949241]
[1744760604201,6.29738083,1588.0,1587.7,0.8329]
[1744760605004,6.29683269,1588.1,1587.5,13.05317529]
[1744760605210,12.59584192,1587.9,1587.5,13.05302053]
[1744760605413,12.59576148,1587.9,1587.5,6.29902053]
[1744760605575,6.29819732,1587.8,1587.4,7.06105392]
[1744760606089,6.29845353,1587.7,1587.4,0.7616]
[1744760606711,6.29845353,1587.7,1587.4,7.0611871]
[1744760608590,12.59641388,1587.8,1587.4,13.3607742]
[1744760608995,6.29819732,1587.8,1587.4,7.06107387]
[1744760609678,6.09999999,1587.9,1587.4,7.06107387]
[1744760610023,6.29813663,1587.8,1587.4,7.06107151]
[1744760610203,6.29853385,1587.7,1587.4,7.06107151]
[1744760610405,6.29853385,1587.7,1587.4,0.7616]
[1744760610615,12.59714604,1587.7,1587.4,0.7616]
[1744760610914,13.39237161,1587.7,1587.3,6.29980383]
[1744760611143,13.39236229,1587.7,1587.4,6.29956184]
[1744760611419,13.39251765,1587.7,1587.3,12.59968547]
[1744760611587,19.49251764,1587.7,1587.3,12.59968547]
[1744760611784,19.49251764,1587.7,1587.3,6.29980383]
[1744760611983,6.29909121,1587.6,1587.2,6.30030958]
[1744760612183,6.09999999,1587.5,1587.1,0.05]
[1744760612397,12.59969311,1587.4,1587.1,0.05]
[1744760612602,6.29972876,1587.4,1587.1,6.35065058]
[1744760612833,12.39931045,1587.5,1587.2,6.30028461]
[1744760613042,6.09999999,1587.5,1587.2,6.30026242]
[1744760613243,6.09999999,1587.5,1587.4,6.29960942]
[1744760614709,6.09999999,1587.5,1587.3,6.29986266]
[1744760615026,6.09999999,1587.7,1587.5,6.29901474]
[1744760615434,12.39857365,1587.7,1587.4,0.8292]
[1744760615636,6.09999999,1587.7,1587.5,6.2990744]
[1744760615847,12.39863089,1587.7,1587.4,7.12855876]
[1744760616142,12.39848448,1587.7,1587.4,7.12855876]
[1744760616347,12.39848448,1587.7,1587.4,13.42805265]
[1744760616550,6.09999999,1587.7,1587.4,7.12855876]
[1744760616736,12.39847755,1587.7,1587.4,7.12855876]
[1744760617106,12.39847755,1587.7,1587.4,13.42805319]
[1744760617307,6.09999999,1587.7,1587.6,6.29881582]
[1744760617531,6.09999999,1587.7,1587.5,12.59825917]
[1744760618134,6.09999999,1587.7,1587.5,6.29905044]
[1744760618528,6.09999999,1587.7,1587.6,6.29881582]
[1744760618732,6.09999999,1587.7,1587.5,6.29905044]
[1744760618968,6.09999999,1587.9,1587.6,6.29881582]
[1744760619279,6.09999999,1587.9,1587.7,6.29840125]
[1744760619940,12.39779205,1587.9,1587.6,6.29863692]
[1744760620345,18.69560544,1587.9,1587.6,6.29863692]
[1744760620766,12.39779205,1587.9,1587.6,6.29863692]
[1744760620967,12.39779205,1587.9,1587.6,12.59734134]
[1744760621145,12.39779205,1587.9,1587.6,6.29863692]
[1744760621580,6.09999999,1587.9,1587.8,6.29802242]
[1744760621745,6.09999999,1588.1,1588.0,6.29722921]
[1744760622079,0.7703,1588.4,1588.0,6.29708637]
[1744760622080,18.69247021,1588.3,1588.0,6.29708637]
[1744760622385,12.39620604,1588.3,1588.0,6.29718008]
[1744760622584,12.39617591,1588.3,1588.0,6.29721042]
[1744760622800,12.39617591,1588.3,1588.0,6.29710067]
[1744760623100,6.87852452,1588.2,1587.9,6.29751108]
[1744760623396,0.58194668,1588.1,1587.9,6.29749398]
[1744760623586,0.58194668,1588.1,1587.9,6.29745673]
[1744760623751,0.58194668,1588.2,1588.0,6.29722921]
[1744760624398,6.8786263,1588.2,1587.9,12.59506023]
[1744760624685,0.58194668,1588.1,1588.0,6.29722921]
[1744760624873,3.30458927,1588.1,1587.8,6.29795414]
[1744760625078,6.29650054,1588.2,1587.8,6.29789714]
[1744760625375,6.29688351,1588.1,1587.8,6.29789714]
[1744760625778,0.58194668,1588.0,1587.7,12.5967034]
[1744760625979,6.68194667,1588.0,1587.5,0.7761]
[1744760626192,0.35063949,1587.9,1587.5,7.07512863]
[1744760626390,0.58194668,1587.8,1587.6,6.29878603]
[1744760626989,0.93258617,1587.7,1587.6,6.29878603]
[1744760627559,0.93258617,1587.7,1587.5,13.37418893]
[1744760627963,0.35063949,1587.7,1587.6,6.29881582]
[1744760628162,0.93671445,1587.7,1587.6,6.29881582]
[1744760629285,0.58607496,1587.7,1587.6,7.41023471]
[1744760630294,0.35164024,1587.9,1587.8,6.29802242]
[1744760630797,0.93771162,1587.9,1587.8,6.29802242]
[1744760632110,0.93771162,1587.9,1587.8,7.10002242]
[1744760632613,0.58607138,1587.9,1587.8,7.10002242]
[1744760632975,0.58607138,1587.9,1587.8,6.29802242]
[1744760634316,6.09999999,1588.1,1587.9,12.59525158]
[1744760634664,6.09999999,1588.1,1588.0,6.29722921]
[1744760634987,7.03762636,1588.1,1588.0,6.29722921]
[1744760635699,0.93762637,1588.1,1588.0,6.29722921]
[1744760635878,0.58601567,1588.1,1588.0,8.18643705]
[1744760636081,6.09999999,1588.3,1588.1,6.29673156]
[1744760636467,6.09999999,1588.3,1588.1,12.59345172]
[1744760636673,6.09999999,1588.3,1588.1,6.29672016]
[1744760636996,0.35145938,1588.2,1588.1,6.29672016]
[1744760637506,6.09999999,1588.3,1588.2,6.29643621]
[1744760637809,16.57408894,1588.6,1588.3,6.29580532]
[1744760637810,19.91715742,1588.6,1588.3,6.29580532]
[1744760638001,19.91715742,1588.6,1588.3,12.59173081]
[1744760638410,13.62229999,1588.6,1587.9,0.7517]
[1744760638587,6.29577768,1588.4,1588.1,12.59333913]
[1744760638787,12.74684776,1588.5,1588.2,12.59274752]
[1744760638992,12.74663503,1588.5,1588.2,12.59265258]
[1744760639199,6.45125138,1588.5,1588.3,6.29579139]
[1744760639714,0.35125139,1588.4,1588.3,14.04050787]
[1744760640292,0.35125139,1588.7,1588.6,6.29485081]
[1744760640881,10.16913216,1588.8,1588.6,6.29485081]
[1744760641112,6.91349999,1589.0,1588.6,6.29466873]
[1744760641318,6.09999999,1589.0,1588.9,6.29366228]
[1744760641827,6.09999999,1589.1,1589.0,6.2932662]
[1744760642334,6.89279999,1589.2,1588.9,6.29366228]
[1744760642555,6.89279999,1589.2,1589.0,6.29294766]
[1744760642755,6.89279999,1589.2,1589.0,12.58600263]
[1744760642909,6.09999999,1589.2,1589.0,12.58600263]
[1744760643313,6.09999999,1589.2,1589.1,6.29287017]
[1744760646563,10.30970164,1589.5,1589.4,6.29168239]
[1744760646850,4.20970165,1589.5,1589.4,6.29168239]
[1744760648454,6.09999999,1589.7,1589.5,6.29109451]
[1744760648621,6.89179999,1589.8,1589.6,6.29073654]
[1744760649045,6.89179999,1589.8,1589.6,12.58150186]
[1744760649274,6.89179999,1589.8,1589.6,6.29073654]
[1744760649473,6.29143464,1589.5,1589.1,9.07941611]
[1744760649643,6.29218906,1589.3,1589.0,6.29302483]
[1744760649846,6.29218906,1589.3,1589.0,12.58618392]
[1744760650169,2.9,1589.2,1589.0,6.2932662]
[1744760650367,2.9,1589.2,1589.1,6.29287017]
[1744760652376,8.99999999,1589.2,1588.7,6.753]
[1744760652698,6.29287512,1589.1,1588.8,12.58772537]
[1744760652896,6.29287512,1589.1,1588.8,6.29383982]
[1744760653042,12.58600221,1589.1,1588.8,6.29383982]
[1744760653244,7.08457512,1589.1,1588.8,6.29383982]
[1744760653443,13.37771817,1589.1,1588.8,6.29383982]
[1744760653640,0.7917,1589.1,1588.8,6.29381631]
[1744760654149,8.99999999,1589.2,1589.0,6.2932662]
[1744760654349,8.99999999,1589.2,1589.0,6.29313843]
[1744760654561,8.99999999,1589.2,1589.0,6.29313513]
[1744760654879,8.99999999,1589.2,1588.6,9.83790191]
[1744760654880,8.99999999,1589.2,1588.9,6.29354911]
[1744760655081,8.99999999,1589.2,1589.0,6.29326087]
[1744760655690,15.29261903,1589.2,1588.9,6.29359357]
[1744760656046,6.2929046,1589.1,1588.8,6.29394534]
[1744760656271,6.2929046,1589.1,1588.8,12.58789414]
[1744760656488,15.29252138,1589.2,1588.9,6.29363123]
[1744760656678,21.58522462,1589.2,1588.9,6.29363123]
[1744760656993,15.29252138,1589.2,1588.9,6.29363123]
[1744760658449,6.29309093,1589.1,1588.8,6.29400641]
[1744760658651,6.29343918,1589.0,1588.7,6.29437949]
[1744760658949,6.29343918,1589.0,1588.7,12.5887159]
[1744760659169,6.29287017,1589.1,1588.6,7.11980065]
[1744760659369,6.29376369,1588.9,1588.6,7.11980065]
[1744760659581,12.58759139,1588.9,1588.6,7.11980065]
[1744760659883,7.11730856,1589.0,1588.6,7.11972916]
[1744760660186,6.2937202,1588.9,1588.6,7.11972916]
[1744760660346,6.2937202,1588.9,1588.6,13.41446242]
[1744760660684,6.2937202,1588.9,1588.6,7.11972916]
[1744760660862,7.11733902,1589.0,1588.7,6.29432866]
[1744760661182,13.41078857,1589.0,1588.7,6.29432866]
[1744760661475,12.58776403,1588.9,1588.6,7.11975767]
[1744760661882,6.29385719,1588.9,1588.6,7.11973656]
[1744760662179,6.29385719,1588.9,1588.6,7.11972743]
[1744760662376,6.2938546,1588.9,1588.5,12.59024732]
[1744760662581,6.29412194,1588.8,1588.5,12.59024732]
[1744760662780,6.2938546,1588.9,1588.6,6.29483502]
[1744760662989,13.41103437,1589.0,1588.7,6.29435307]
[1744760663588,6.29367884,1588.9,1588.6,6.29472503]
[1744760663890,6.29367884,1588.9,1588.6,12.58945067]
[1744760664186,12.58748819,1588.9,1588.6,6.29472503]
[1744760664355,12.58748819,1588.9,1588.5,6.29524621]
[1744760664356,6.29406243,1588.8,1588.5,12.5903882]
[1744760664772,12.62499999,1588.9,1588.7,6.29441999]
[1744760664965,6.09999999,1588.9,1588.7,6.29427978]
[1744760665282,6.09999999,1588.9,1588.8,6.2940584]
[1744760665587,6.09999999,1588.9,1588.7,12.58861648]
[1744760665754,6.09999999,1588.9,1588.7,6.29427978]
[1744760666353,6.09999999,1588.9,1588.5,7.62952559]
[1744760666554,6.29430362,1588.8,1588.6,6.29483381]
[1744760666753,18.68759599,1588.9,1588.6,6.29483381]
[1744760666955,6.2941571,1588.8,1588.5,12.59031354]
[1744760668160,18.687734,1588.9,1588.6,6.29482382]
[1744760668492,18.68765983,1588.9,1588.6,6.29482382]
[1744760668661,12.39374685,1588.9,1588.6,12.58957177]
[1744760668862,18.68765983,1588.9,1588.6,6.29474795]
[1744760669388,12.39374685,1588.9,1588.6,12.5894959]
[1744760669687,12.39374685,1588.9,1588.6,6.29474795]
[1744760669869,12.39374685,1588.9,1588.6,12.58948399]
[1744760670190,6.09999999,1588.9,1588.7,6.29434596]
[1744760670382,12.39366599,1588.9,1588.7,6.29434596]
[1744760670582,12.39366599,1588.9,1588.6,12.58947208]
[1744760671095,18.68748149,1588.9,1588.6,6.29473604]
[1744760671387,18.68755856,1588.9,1588.6,6.29473604]
[1744760671593,6.29413002,1588.8,1588.5,12.5904673]
[1744760671889,6.09999999,1588.9,1588.4,0.7533]
[1744760672190,13.39458207,1588.7,1588.4,6.29552521]
[1744760672382,13.19982928,1588.7,1588.4,6.29552521]
[1744760672583,6.29486979,1588.6,1588.3,12.59188514]
[1744760672991,19.49461036,1588.7,1588.4,6.29560321]
[1744760673196,13.19982928,1588.7,1588.4,12.59113571]
[1744760673394,6.90519999,1588.7,1588.5,6.29511686]
[1744760673692,12.39455308,1588.7,1588.4,6.29552081]
[1744760673994,6.09999999,1588.7,1588.5,6.29522695]
[1744760674586,6.09999999,1588.7,1588.5,6.29512388]
[1744760675385,6.09999999,1588.7,1588.5,6.29512321]
[1744760675697,12.39456811,1588.7,1588.4,12.59106534]
[1744760676064,6.09999999,1588.7,1588.4,12.59106534]
[1744760676294,6.09999999,1588.7,1588.5,6.29520609]
[1744760676799,6.09999999,1588.7,1588.5,12.59034341]
[1744760676963,6.09999999,1588.7,1588.5,6.29513732]
[1744760677292,6.09999999,1588.7,1588.5,6.29512963]
[1744760677499,6.09999999,1588.7,1588.5,12.59026326]
[1744760677792,6.09999999,1588.7,1588.5,6.29512963]
[1744760678000,6.09999999,1588.7,1588.5,12.59026326]
[1744760678202,6.09999999,1588.7,1588.5,6.29512963]
[1744760678375,6.09999999,1588.7,1588.5,6.29512165]
[1744760678771,6.09999999,1588.7,1588.5,12.59025067]
[1744760679183,6.09999999,1588.7,1588.6,6.29485081]
[1744760681972,0.35209284,1588.7,1588.6,6.29485081]
[1744760682173,0.35209284,1588.7,1588.5,14.62602994]
[1744760682174,7.41082748,1588.7,1588.4,6.29553311]
[1744760682709,13.70546167,1588.7,1588.4,6.29553311]
[1744760682912,0.35209284,1588.6,1588.4,12.59107516]
[1744760683817,0.35209284,1588.5,1588.4,12.59107516]
[1744760684112,0.35209284,1588.5,1588.3,6.29590361]
[1744760684310,0.35209284,1588.5,1588.4,6.29564341]
[1744760684502,0.35209284,1588.6,1588.4,6.29564341]
[1744760685381,0.7641,1588.7,1588.5,6.29508196]
[1744760685609,6.526,1588.7,1588.5,6.29508196]
[1744760685790,19.11436864,1588.8,1588.5,6.29508196]
[1744760686181,0.35227847,1588.7,1588.5,6.29508196]
[1744760686392,6.64675013,1588.7,1588.4,7.04673592]
[1744760686721,12.94150164,1588.7,1588.4,7.04673592]
[1744760687398,0.35227847,1588.6,1588.4,13.34227504]
[1744760687722,0.35227847,1588.6,1588.4,7.04673492]
[1744760687892,0.35227847,1588.6,1588.4,7.04672618]
[1744760688289,18.68909128,1588.7,1588.4,6.29552618]
[1744760689126,12.39447165,1588.7,1588.4,6.29552618]
[1744760690125,0.35242965,1588.6,1588.4,6.29552618]
[1744760690327,0.35242965,1588.6,1588.4,12.59105495]
[1744760690929,0.35242965,1588.5,1588.4,12.59105495]
[1744760691431,0.35242965,1588.5,1588.4,6.29552618]
[1744760692131,0.35242965,1588.5,1588.4,14.25397045]
[1744760692132,3.25242965,1588.5,1588.4,14.25397045]
[1744760692298,3.25242965,1588.5,1588.4,14.19101727]
[1744760692499,4.20970165,1589.1,1588.9,6.29361099]
[1744760692698,4.20970165,1589.1,1588.9,12.58715342]
[1744760692894,4.20970165,1589.1,1588.9,6.29354243]
[1744760693104,0.35247499,1589.0,1588.9,6.29354243]
[1744760697139,3.25247499,1589.0,1588.9,6.29354243]
[1744760699334,3.25247499,1589.0,1588.8,13.417837]
[1744760699745,2.9,1589.0,1588.8,13.417837]
[1744760699906,3.7165,1589.0,1588.8,6.2940543]
[1744760700107,3.7165,1589.0,1588.8,6.29395817]
[1744760700410,2.9,1589.0,1588.9,6.29366228]
[1744760700810,2.9,1589.0,1588.8,12.58785501]
[1744760701037,9.19328734,1589.0,1588.7,6.29437673]
[1744760701228,9.19328734,1589.0,1588.7,6.29435606]
[1744760701437,9.19328734,1589.0,1588.4,7.11309228]
[1744760701438,6.29480025,1588.7,1588.4,7.11309228]
[1744760701747,12.58961868,1588.7,1588.4,6.29549228]
[1744760701910,0.35212914,1588.6,1588.4,6.29549228]
[1744760702112,0.35212914,1588.6,1588.4,12.59103006]
[1744760702333,4.20970165,1589.3,1589.2,6.2924742]
[1744760702520,4.20970165,1589.3,1589.1,6.29267729]
[1744760702726,4.20970165,1589.3,1589.1,12.58529185]
[1744760703249,4.20970165,1589.3,1589.1,6.29256533]
[1744760704148,4.20970165,1589.3,1589.2,6.2924742]
[1744760704351,4.20970165,1589.3,1589.2,9.01134588]
[1744760705248,4.20970165,1589.3,1589.2,11.79435018]
[1744760705449,4.20970165,1589.3,1589.2,14.73143161]
[1744760705750,4.20970165,1589.6,1589.5,6.29128656]
[1744760706047,4.20970165,1589.6,1589.5,7.06168656]
[1744760706752,4.20970165,1589.6,1589.4,6.29149283]
[1744760708246,6.29142911,1589.5,1589.2,6.2923608]
[1744760708445,12.58299344,1589.5,1589.1,13.38864192]
[1744760709019,12.58299344,1589.5,1589.1,12.58554192]
[1744760709216,6.29183772,1589.4,1589.0,6.2931185]
[1744760709455,12.58384342,1589.4,1589.0,12.58624267]
[1744760709655,12.58384342,1589.4,1589.1,6.29273914]
[1744760709656,12.58483772,1589.4,1589.1,6.29273914]
[1744760709833,18.87686282,1589.4,1589.0,12.58624267]
[1744760710368,18.87686282,1589.4,1589.1,6.29286922]
[1744760710369,12.58483772,1589.4,1589.1,6.29286922]
[1744760710676,6.29208126,1589.3,1589.0,6.2931185]
[1744760710852,7.09668126,1589.3,1589.0,6.2931185]
[1744760711030,7.09668126,1589.3,1589.0,12.58627091]
[1744760711872,7.09668126,1589.3,1589.0,12.58626051]
[1744760712029,19.48910374,1589.3,1589.0,6.2931185]
[1744760712366,19.48891444,1589.3,1589.0,6.2931185]
[1744760713118,13.19668125,1589.3,1589.0,6.2931185]
[1744760713465,19.48896331,1589.3,1589.0,6.2931185]
[1744760713633,13.19668125,1589.3,1589.0,6.2931185]
[1744760713969,6.29247762,1589.2,1588.9,15.30717647]
[1744760714170,6.29247762,1589.2,1588.8,6.29393447]
[1744760714372,6.29287858,1589.1,1588.8,12.58786894]
[1744760714520,6.29287858,1589.1,1588.8,6.29393447]
[1744760714724,6.29287858,1589.1,1588.8,12.5878668]
[1744760714926,12.3925049,1589.2,1588.9,6.29362403]
[1744760715125,6.09999999,1589.2,1589.0,6.29320844]
[1744760715360,12.39258639,1589.2,1588.9,6.29362403]
[1744760715583,4.20970165,1589.8,1588.9,6.29362403]
[1744760715584,4.20970165,1589.8,1589.0,6.3986]
[1744760715725,4.20970165,1589.8,1589.7,9.01058079]
[1744760717271,4.20970165,1589.8,1589.7,6.29049506]
[1744760719673,6.292,1590.1,1589.9,6.28946078]
[1744760720040,6.292,1590.1,1589.9,12.57905155]
[1744760720438,6.292,1590.1,1590.0,6.28930817]
[1744760720842,6.28830207,1590.3,1590.0,12.57861634]
[1744760721078,12.38830206,1590.3,1590.0,6.28918401]
[1744760721224,6.444,1590.2,1590.0,6.28916765]
[1744760721431,6.444,1590.2,1589.9,6.28963044]
[1744760721686,6.444,1590.2,1589.8,12.57993819]
[1744760721687,6.28895757,1590.1,1589.8,12.57993819]
[1744760721977,12.73268033,1590.2,1589.9,6.2896496]
[1744760722271,19.02138526,1590.2,1589.8,12.57993819]
[1744760722889,6.29087211,1589.7,1589.3,13.41478004]
[1744760723035,13.55645134,1589.7,1589.3,8.78499032]
[1744760723229,13.55645134,1589.7,1589.3,7.95418464]
[1744760723579,7.2658,1589.7,1589.4,12.5833496]
[1744760723880,13.55634387,1589.7,1589.3,6.29201379]
[1744760724098,19.84718699,1589.7,1589.3,12.58402758]
[1744760724258,6.29089119,1589.6,1589.3,12.58397507]
[1744760724458,6.29089119,1589.6,1589.3,6.29196128]
[1744760724789,18.68196764,1589.6,1589.3,6.29196128]
[1744760725094,18.68196764,1589.6,1589.2,6.2924092]
[1744760725095,6.29133434,1589.5,1589.2,6.2924092]
[1744760725255,6.29133434,1589.5,1589.2,12.5848184]
[1744760725596,18.68205226,1589.6,1589.2,12.5848184]
[1744760725796,6.29128779,1589.5,1589.2,12.5848184]
[1744760725954,12.39099776,1589.6,1589.3,6.29194534]
[1744760726157,6.09999999,1589.6,1589.1,0.8308]
[1744760726366,6.09999999,1589.6,1589.5,6.29128656]
[1744760727195,6.09999999,1589.6,1589.4,6.29151478]
[1744760727359,6.09999999,1589.6,1589.4,12.58307249]
[1744760727761,6.09999999,1589.6,1589.4,6.29151478]
[1744760728306,13.14699484,1589.9,1589.5,6.29128656]
[1744760728450,6.444,1589.8,1589.6,6.29077109]
[1744760728799,12.38981914,1589.9,1589.6,6.29075857]
[1744760728954,12.38981914,1589.9,1589.6,12.58154408]
[1744760729149,6.85709999,1589.9,1589.7,6.29047076]
[1744760730102,0.7571,1589.9,1589.7,6.29047076]
[1744760730409,0.7571,1589.9,1589.7,6.29035668]
[1744760731814,0.37849043,1589.8,1589.7,6.29035668]
[1744760732760,0.37849043,1589.8,1589.7,7.54846965]
[1744760732867,0.37849043,1589.8,1589.7,7.61136807]
[1744760733068,7.2095,1590.1,1589.9,6.28952597]
[1744760733307,7.2095,1590.1,1589.9,12.57911076]
[1744760733483,7.2095,1590.1,1589.9,6.28952597]
[1744760734173,7.2095,1590.1,1589.9,12.57910677]
[1744760734803,7.2095,1590.1,1589.5,7.07535933]
[1744760734975,6.2898377,1589.9,1589.6,6.29084611]
[1744760735176,0.38295373,1589.8,1589.6,6.29084611]
[1744760736176,0.38295373,1589.8,1589.6,12.58161622]
[1744760736695,0.38295373,1589.8,1589.6,6.29077011]
[1744760736899,6.67320332,1589.8,1589.5,7.07556492]
[1744760737215,6.2914341,1589.5,1589.2,6.29237093]
[1744760737415,0.38039289,1589.4,1589.1,12.58547673]
[1744760737618,6.67209046,1589.4,1589.1,13.9216044]
[1744760737827,6.29225263,1589.3,1589.1,1.33612767]
[1744760738013,12.73625263,1589.3,1589.0,6.29315852]
[1744760738209,0.37973592,1589.2,1588.9,7.55230025]
[1744760738409,6.67233724,1589.2,1588.9,7.55230025]
[1744760738924,0.37973592,1589.2,1589.0,6.29325681]
[1744760739291,0.37973592,1589.2,1589.0,12.58651362]
[1744760739484,0.37973592,1589.2,1589.0,13.30857872]
[1744760739896,0.37973592,1589.2,1589.1,6.29287017]
[1744760741034,0.37973592,1589.2,1589.1,7.12127017]
[1744760743145,0.37973592,1589.2,1589.0,7.01513946]
[1744760743345,0.37973592,1589.2,1589.0,13.30829758]
[1744760743540,0.37973592,1589.2,1589.0,13.3082929]
[1744760744285,0.37973592,1589.2,1589.1,6.29287017]
[1744760747391,0.37973592,1589.2,1589.0,13.30826641]
[1744760747551,0.37973592,1589.2,1589.1,6.29287017]
[1744760748405,0.37973592,1589.2,1589.0,0.7220651]
[1744760748565,0.37973592,1589.2,1589.0,13.30835977]
[1744760748887,0.37973592,1589.2,1589.0,7.01520934]
[1744760749383,0.37973592,1589.2,1589.0,6.29314424]
[1744760749985,0.37973592,1589.2,1589.0,12.58629852]
[1744760750182,0.37973592,1589.2,1589.1,6.29287017]
[1744760750352,0.37973592,1589.2,1589.0,6.29314424]
[1744760750549,4.20970165,1589.9,1589.4,0.8066]
[1744760750754,4.20970165,1589.9,1589.8,9.81438633]
[1744760751281,4.20970165,1589.9,1589.8,10.30341128]
[1744760751494,4.20970165,1589.9,1589.8,7.09669938]
[1744760751654,4.20970165,1589.9,1589.8,8.43539956]
[1744760752998,4.20970165,1589.9,1589.8,11.64211146]
[1744760753181,4.20970165,1589.9,1589.8,8.43539956]
[1744760756403,7.3432,1590.3,1590.1,6.28883159]
[1744760756890,7.3432,1590.3,1590.1,6.28879115]
[1744760757068,7.3432,1590.3,1590.1,12.57759568]
[1744760758095,0.28298633,1590.2,1590.1,12.57759568]
[1744760758593,0.28298633,1590.2,1590.1,6.28879115]
[1744760759800,0.28298633,1590.2,1589.9,6.28969284]
[1744760759960,0.28298633,1590.2,1590.0,6.28917988]
[1744760760161,3.47366383,1590.6,1589.9,7.13319214]
[1744760760162,4.75970165,1590.9,1590.2,0.801]
[1744760760357,4.75970165,1590.9,1590.6,6.28663285]
[1744760760557,4.75970165,1590.9,1590.8,6.28614533]
[1744760762392,4.75970165,1590.9,1590.7,6.28633229]
[1744760762699,11.26970165,1590.9,1590.7,12.57272783]
[1744760763000,11.26970165,1590.9,1590.8,6.28614533]
[1744760763799,4.75970165,1590.9,1590.8,6.28614533]
[1744760764364,4.75970165,1590.9,1590.6,6.28679009]
[1744760764595,4.75970165,1590.9,1590.6,0.06286186]
[1744760764796,5.55290165,1590.9,1590.6,0.06286186]
[1744760765064,5.55290165,1590.9,1590.0,0.48206164]
[1744760765065,0.7932,1590.5,1590.2,6.2883403]
[1744760765261,13.58953572,1590.5,1590.2,6.2883403]
[1744760765474,6.28786661,1590.4,1590.1,6.28879714]
[1744760765673,12.5757739,1590.4,1590.1,6.28877228]
[1744760766000,6.28786661,1590.4,1590.1,6.28877228]
[1744760766217,6.28865537,1590.2,1589.9,6.28966719]
[1744760766509,7.06555537,1590.2,1589.9,6.28966719]
[1744760766815,0.7769,1590.2,1589.7,6.29041856]
[1744760767118,0.7769,1590.2,1590.0,12.57822155]
[1744760767817,0.20231592,1590.1,1590.0,6.28902086]
[1744760768209,6.508,1590.3,1590.1,6.28883481]
[1744760768513,7.3092,1590.4,1590.2,6.28831192]
[1744760768677,7.3092,1590.4,1590.2,12.57669043]
[1744760769479,7.3092,1590.4,1590.2,6.28831192]
[1744760769823,6.508,1590.4,1590.2,12.57672194]
[1744760770507,6.508,1590.4,1590.2,6.28831192]
[1744760770919,6.508,1590.4,1590.3,6.28812173]
[1744760771412,6.508,1590.4,1590.2,12.57668203]
[1744760772118,6.508,1590.4,1590.3,6.28812173]